{"text_format":"3","workbook":"xlsx","n_sheets":4,"sheets":["Sākums","Izdevumi","Ienākumi","Kopsavilkums"],"not_rendered":{"charts":1,"defined_names":2},"read":"whole","date_system":"1900"}

{"sheet":"Sākums","index":0,"n_rows":8,"n_cols":2,"rows_kept":8}
[null,"PAR ŠO VEIDNI"]
[null,"Izmantojiet šo pasākuma budžeta darbgrāmatu, lai izsekotu pasākuma izmaksas un no tā gūtos Ienākumi."]
[null,"Ierakstiet pasākuma nosaukumu un ievadiet detalizētu informāciju tabulās darblapā Ienākumi un darblapā Izdevumi."]
[null,"Izdevumu kopsumma un Kopējie ienākumi tiek aprēķinātas automātiski."]
[null,"Peļņas un saudējumu kopsavilkums un diagramma tiek automātiski atjaunināti darblapā Kopsavilkums."]
[null,"Piezīme. "]
[null,"Papildu norādījumi ir sniegti kolonnā A katrā darblapā. Šis teksts ir paslēpts ar nolūku. Lai tekstu noņemtu, atlasiet kolonnu A, pēc tam atlasiet DZĒST. Lai parādītu slēpto tekstu, atlasiet kolonnu A, pēc tam nomainiet fonta krāsu."]
[null,"Lai iegūtu papildinformāciju par tabulām, nospiediet taustiņu SHIFT un pēc tam F10 tabulā, atlasiet opciju TABULA un pēc tam atlasiet ALTERNATĪVAIS TEKSTS."]

{"sheet":"Izdevumi","index":1,"n_rows":33,"n_cols":8,"rows_kept":33,"merged":[[0,5,0,7],[1,1,1,7],[2,6,2,7]]}
["Šajā darblapā plānotās un faktiskie izdevumus katrai kategorijai attiecīgajās tabulās. Izdevumu kopsumma tiek aprēķināta automātiski. Šīs kolonnas šūnās ir noderīgi norādījumi par to, kā lietot šo darblapu. Bultiņa uz leju, lai sāktu darbu."]
["Šūnā pa labi ievadiet pasākuma nosaukums, lai pielāgotu šo un citu darblapu nosaukumu.","Pasākuma budžets \nPasākuma nosaukums"]
["Izdevumi etiķete ir šūnā G3.",{"$nulls":5}," Izdevumi"]
["Etiķete Plānotās ir šūnā G4 un etiķete Faktiskie ir šūnā H4.",{"$nulls":5},"Plānotās","Faktiskie"]
["Izdevumu kopsumma etiķete ir šūnā pa labi. Izdevumu kopsumma kopsumma tiek automātiski aprēķināta šūnā G5. Faktiskie Izdevumu kopsumma un datu josla, kas norāda faktisko Izdevumu kopsumma, tiek automātiski atjaunināta šūnā H5. Nākamais norādījums ir šūnā A7.","Izdevumu kopsumma",{"$nulls":4},{"$f":"SUM(C12,C20,C26,C33,G12,G20,G25)","v":{"v":1145,"d":"1,145.00 EUR"}},{"$f":"SUM(D12,D20,D26,D33,H12,H20,H25)","v":{"v":395,"d":"395.00 EUR"}}]
[]
["Tabulā ievadiet norises vietas izmaksas, sākot ar šūnu pa labi, un ievadiet uzkodu un dzērienu izmaksas, sākot ar šūnu F7. Nākamais norādījums ir šūnā A14.","Vieta","Plānotās","Faktiskie",null,"Dzērieni un uzkodas","Plānotās","Faktiskie"]
[null,"Telpas un zāles izmaksas",{"v":500,"d":"500.00 EUR"},{"v":250,"d":"250.00 EUR"},null,"Pārtika"]
[null,"Vietas personāls",{"v":400,"d":"400.00 EUR"},{"v":50,"d":"50.00 EUR"},null,"Dzērieni"]
[null,"Aprīkojums",{"$nulls":3},"Galdauti"]
[null,"Galdi un krēsli",{"$nulls":3},"Personāla atalgojums un pateicības"]
[null,"Kopsumma",{"$f":"SUBTOTAL(109,VietasIzmaksas[Plānotās])","v":{"v":900,"d":"900.00 EUR"}},{"$f":"SUBTOTAL(109,VietasIzmaksas[Faktiskie])","v":{"v":300,"d":"300.00 EUR"}},null,"Kopsumma",{"$f":"SUBTOTAL(109,UzkoduUnDzērienuIzmaksas[Plānotās])","v":{"v":0,"d":"0.00 EUR"}},{"$f":"SUBTOTAL(109,UzkoduUnDzērienuIzmaksas[Faktiskie])","v":{"v":0,"d":"0.00 EUR"}}]
[]
["Tabulā ievadiet dekorāciju izmaksas, sākot ar šūnu pa labi, un ievadiet programas izmaksas, sākot ar šūnu F14. Nākamais norādījums ir šūnā A22.","Dekorācijas","Plānotās","Faktiskie",null,"Programma","Plānotās","Faktiskie"]
[null,"Ziedi",{"v":200,"d":"200.00 EUR"},{"v":50,"d":"50.00 EUR"},null,"Izpildītāji"]
[null,"Sveces",{"$nulls":3},"Skaļruņi"]
[null,"Apgaismojums",{"$nulls":3},"Ceļojums"]
[null,"Baloni",{"$nulls":3},"Viesnīca"]
[null,"Papīra izejmateriāli",{"$nulls":3},"Cits"]
[null,"Kopsumma",{"$f":"SUBTOTAL(109,DekorācijuIzmaksas[Plānotās])","v":{"v":200,"d":"200.00 EUR"}},{"$f":"SUBTOTAL(109,DekorācijuIzmaksas[Faktiskie])","v":{"v":50,"d":"50.00 EUR"}},null,"Kopsumma",{"$f":"SUBTOTAL(109,ProgramasIzmaksas[Plānotās])","v":{"v":0,"d":"0.00 EUR"}},{"$f":"SUBTOTAL(109,ProgramasIzmaksas[Faktiskie])","v":{"v":0,"d":"0.00 EUR"}}]
[]
["Tabulā ievadiet reklāmas izmaksas, sākot ar šūnu pa labi, un ievadiet apbalvojumu izmaksas, sākot ar šūnu F22. Nākamais norādījums ir šūnā A28.","Reklāma","Plānotās","Faktiskie",null,"Balvas","Plānotās","Faktiskie"]
[null,"Grafiskie darbi",{"v":45,"d":"45.00 EUR"},{"v":45,"d":"45.00 EUR"},null,"Lentes/plāksnes/balvas"]
[null,"Kopēšana/drukāšana",{"$nulls":3},"Dāvanas"]
[null,"Pasta izdevumi",{"$nulls":3},"Kopsumma",{"$f":"SUBTOTAL(109,ApbalvojumuIzmaksas[Plānotās])","v":{"v":0,"d":"0.00 EUR"}},{"$f":"SUBTOTAL(109,ApbalvojumuIzmaksas[Faktiskie])","v":{"v":0,"d":"0.00 EUR"}}]
[null,"Kopsumma",{"$f":"SUBTOTAL(109,ReklāmasIzmaksas[Plānotās])","v":{"v":45,"d":"45.00 EUR"}},{"$f":"SUBTOTAL(109,ReklāmasIzmaksas[Faktiskie])","v":{"v":45,"d":"45.00 EUR"}}]
[]
["Tabulā ievadiet Dažādas Izmaksas, sākot ar šūnu pa labi.","Dažādi","Plānotās","Faktiskie"]
[null,"Tālrunis"]
[null,"Transports"]
[null,"Vēstuļpapīrs"]
[null,"Faksa pakalpojumi"]
[null,"Kopsumma",{"$f":"SUBTOTAL(109,DažādasIzmaksas[Plānotās])","v":{"v":0,"d":"0.00 EUR"}},{"$f":"SUBTOTAL(109,DažādasIzmaksas[Faktiskie])","v":{"v":0,"d":"0.00 EUR"}}]

{"sheet":"Ienākumi","index":2,"n_rows":30,"n_cols":7,"rows_kept":30,"merged":[[1,1,1,6],[2,5,2,6]]}
["Šajā darblapā ievadiet Plānotās izmaksas un faktiskie ienākumus no katras kategorijas attiecīgajās tabulās. Ieņēmumu kopsumma tiek aprēķināta automātiski. Šīs kolonnas šūnās ir noderīgi norādījumi par to, kā lietot šo darblapu. Bultiņa uz leju, lai sāktu darbu."]
["Šūnā pa labi tiek automātiski atjaunināts pasākuma nosaukums.",{"$f":"Izdevumi!B2","v":"Pasākuma budžets \nPasākuma nosaukums"}]
["Ienākumi etiķete ir šūnā F3.",{"$nulls":4}," Ienākumi"]
["Etiķete Plānotās ir šūnā F4 un etiķete Faktiskie ir šūnā G4.",{"$nulls":4},"Plānotās","Faktiskie"]
["Etiķete Kopējie ienākumi ir šūnā pa labi. Plānotā kopsumma tiek automātiski aprēķināta šūnā F5. Faktiskā kopsumma un datu josla, kas norāda Faktiskā kopsumma kopsummu, tiek automātiski atjaunināta šūnā G5.","Kopējie ienākumi",{"$nulls":3},{"$f":"SUM(Apmeklētāji[[#Totals],[Plānotā kopsumma]],ReklāmasProgrammā[[#Totals],[Plānotā kopsumma]],EksponētājiUnPiegādātāji[[#Totals],[Plānotā kopsumma]],PrecesPārdošana[[#Totals],[Plānotā kopsumma]])","v":{"v":1936,"d":"1,936.00 EUR"}},{"$f":"SUM(Apmeklētāji[[#Totals],[Faktiskā kopsumma]],ReklāmasProgrammā[[#Totals],[Faktiskā kopsumma]],EksponētājiUnPiegādātāji[[#Totals],[Faktiskā kopsumma]],PrecesPārdošana[[#Totals],[Faktiskā kopsumma]])","v":{"v":1831,"d":"1,831.00 EUR"}}]
["Apmeklētāji etiķete ir šūnā pa labi.","Apmeklētāji"]
["Tabulā ievadiet plānotās un faktiskie apmeklētāju skaitu ar biļešu cenām, sākot no šūnas pa labi. plānotās  un faktiskie ienākumi no ieejas biļetēm tiek apmeklētāji automātiski. Nākamais norādījums ir šūnā A12.","Plānotās","Faktiskie","Veids","Cena","Plānotā kopsumma","Faktiskā kopsumma"]
[null,300,278,"Pieaugušie @",{"v":5,"d":"5.00 EUR"},{"$f":"B8*E8","v":{"v":1500,"d":"1,500.00 EUR"}},{"$f":"C8*E8","v":{"v":1390,"d":"1,390.00 EUR"}}]
[null,197,195,"Bērni @",{"v":2,"d":"2.00 EUR"},{"$f":"B9*E9","v":{"v":394,"d":"394.00 EUR"}},{"$f":"C9*E9","v":{"v":390,"d":"390.00 EUR"}}]
[null,42,51,"Citi @",{"v":1,"d":"1.00 EUR"},{"v":42,"d":"42.00 EUR"},{"v":51,"d":"51.00 EUR"}]
[null," ",{"$nulls":3},{"$f":"SUBTOTAL(109,Apmeklētāji[Plānotā kopsumma])","v":{"v":1936,"d":"1,936.00 EUR"}},{"$f":"SUBTOTAL(109,Apmeklētāji[Faktiskā kopsumma])","v":{"v":1831,"d":"1,831.00 EUR"}}]
["Reklāmu programmā etiķete ir šūnā pa labi.","Reklāmas programmā"]
["Tabulā ievadiet plānotās un faktisko faktiskie skaitu programmā un reklāmas cenas, sākot no šūnas pa labi. plānotās un faktiskie ienākumi no Reklāmas programmā aprēķināti automātiski. Nākamais norādījums ir šūnā A18.","Plānotās","Faktiskie","Veids","Cena","Plānotā kopsumma","Faktiskā kopsumma"]
[{"$nulls":3},"Titullapas @",null,{"$f":"B14*E14","v":{"v":0,"d":"0.00 EUR"}},{"$f":"C14*E14","v":{"v":0,"d":"0.00 EUR"}}]
[{"$nulls":3},"Puslapas @",null,{"$f":"B15*E15","v":{"v":0,"d":"0.00 EUR"}},{"$f":"C15*E15","v":{"v":0,"d":"0.00 EUR"}}]
[{"$nulls":3},"Ceturtdaļlapas @",null,{"v":0,"d":"0.00 EUR"},{"v":0,"d":"0.00 EUR"}]
[null," ",{"$nulls":3},{"$f":"SUBTOTAL(109,ReklāmasProgrammā[Plānotā kopsumma])","v":{"v":0,"d":"0.00 EUR"}},{"$f":"SUBTOTAL(109,ReklāmasProgrammā[Faktiskā kopsumma])","v":{"v":0,"d":"0.00 EUR"}}]
["Eksponētāju vai piegādātāju etiķete ir šūnā pa labi.","Eksponētāji/piegādātāji"]
["Tabulā ievadiet plānotās un faktiskie eksponētāju un piegādātāju skaitu un stendu cenas, sākot no šūnas pa labi. plānotās un faktiskie ienākumi tiek aprēķināti automātiski. Nākamais norādījums ir šūnā A24.","Plānotās","Faktiskie","Veids","Cena","Plānotā kopsumma","Faktiskā kopsumma"]
[{"$nulls":3},"Lieli stendi @",null,{"$f":"B20*E20","v":{"v":0,"d":"0.00 EUR"}},{"$f":"C20*E20","v":{"v":0,"d":"0.00 EUR"}}]
[{"$nulls":3},"Vid. stendi @",null,{"$f":"B21*E21","v":{"v":0,"d":"0.00 EUR"}},{"$f":"C21*E21","v":{"v":0,"d":"0.00 EUR"}}]
[{"$nulls":3},"Mazi stendi @",null,{"v":0,"d":"0.00 EUR"},{"v":0,"d":"0.00 EUR"}]
[null," ",{"$nulls":3},{"$f":"SUBTOTAL(109,EksponētājiUnPiegādātāji[Plānotā kopsumma])","v":{"v":0,"d":"0.00 EUR"}},{"$f":"SUBTOTAL(109,EksponētājiUnPiegādātāji[Faktiskā kopsumma])","v":{"v":0,"d":"0.00 EUR"}}]
["Preču pārdošanas etiķete ir šūnā pa labi.","Preču pārdošana"]
["Tabulā ievadiet plānoto un faktisko pārdoto preču skaitu programmā un preču cenas, sākot no šūnas pa labi. Plānotie un faktiskie ienākumi tiek aprēķināti automātiski.","Plānotās","Faktiskie","Veids","Cena","Plānotā kopsumma","Faktiskā kopsumma"]
[{"$nulls":3},"Preces @",null,{"$f":"B26*E26","v":{"v":0,"d":"0.00 EUR"}},{"$f":"C26*E26","v":{"v":0,"d":"0.00 EUR"}}]
[{"$nulls":3},"Preces @",null,{"$f":"B27*E27","v":{"v":0,"d":"0.00 EUR"}},{"$f":"C27*E27","v":{"v":0,"d":"0.00 EUR"}}]
[{"$nulls":3},"Preces @",null,{"v":0,"d":"0.00 EUR"},{"v":0,"d":"0.00 EUR"}]
[{"$nulls":3},"Preces @",null,{"v":0,"d":"0.00 EUR"},{"v":0,"d":"0.00 EUR"}]
[null," ",{"$nulls":3},{"$f":"SUBTOTAL(109,PrecesPārdošana[Plānotā kopsumma])","v":{"v":0,"d":"0.00 EUR"}},{"$f":"SUBTOTAL(109,PrecesPārdošana[Faktiskā kopsumma])","v":{"v":0,"d":"0.00 EUR"}}]

{"sheet":"Kopsavilkums","index":3,"n_rows":9,"n_cols":4,"rows_kept":9,"merged":[[1,1,1,3],[2,2,2,3],[8,1,8,4],[9,1,9,3]]}
["Peļņas un saudējumu kopsavilkums un diagramma, kurā norādītas ienākumu un izdevumu kopsummas, tiek automātiski atjauninātas šajā darblapā. Šīs kolonnas šūnās ir noderīgi norādījumi par to, kā lietot šo darblapu. Bultiņa uz leju, lai sāktu darbu."]
["Šūnā pa labi tiek automātiski atjaunināts pasākuma nosaukums.",{"$f":"Izdevumi!B2","v":"Pasākuma budžets \nPasākuma nosaukums"}]
["Peļņas/saudējumu kopsavilkums etiķete ir šūnā C3. Nākamais norādījums ir šūnā A5.",null,"Peļņas/saudējumu kopsavilkums"]
[]
["Kopā tabula, kas sākas šūnā pa labi, tiek atjaunināta automātiski. Nākamais norādījums ir šūnā A9.","Kopā","Plānotie","Faktiskie"]
[null,"Ienākumu kopsumma",{"$f":"Ienākumi!F5","v":{"v":1936,"d":"1,936.00 EUR"}},{"$f":"Ienākumi!G5","v":{"v":1831,"d":"1,831.00 EUR"}}]
[null,"Izdevumu kopsumma",{"$f":"Izdevumi!G5","v":{"v":1145,"d":"1,145.00 EUR"}},{"$f":"Izdevumi!H5","v":{"v":395,"d":"395.00 EUR"}}]
[null,"Peļņas (vai zaudējumu) kopsumma",{"$f":"C6-C7","v":{"v":791,"d":"791.00 EUR"}},{"$f":"D6-D7","v":{"v":1436,"d":"1,436.00 EUR"}}]
["Šūnā pa labi ir sagrupēta stabiņu diagramma, kurā attēlotas plānotie un Faktiskie ienākumu kopsumma salīdzinājumā ar Izdevumu kopsumma.","Šajā šūnā ir sagrupēta stabiņu diagramma, kurā attēlotas Plānotie un Faktiskie ienākumu kopsumma salīdzinājumā ar Izdevumu kopsumma."]